[Event "*** Titled Tuesday Blitz"]
[Site "Chess.com"]
[Date "2018.01.02"]
[Round "9"]
[White "maciek_92"]
[Black "TheBigBoss04"]
[Result "0-1"]
[WhiteElo "2542"]
[BlackElo "2503"]
[TimeControl "180+2"]
[EndTime "14:57:57 PST"]
[Termination "TheBigBoss04 won by resignation"]

1. e4 {[%clk 0:03:01.9]} 1... c6 {[%clk 0:02:57.4]} 2. d4 {[%clk 0:02:58.1]}
2... d5 {[%clk 0:02:58.1]} 3. Nc3 {[%clk 0:02:59.6]} 3... dxe4 {[%clk
0:02:58.7]} 4. Nxe4 {[%clk 0:03:01.5]} 4... Bf5 {[%clk 0:03:00.1]} 5. Ng3 {[%clk
0:02:58.5]} 5... Bg6 {[%clk 0:03:01.3]} 6. h4 {[%clk 0:03:00.4]} 6... h6 {[%clk
0:03:01.5]} 7. f4 {[%clk 0:03:02]} 7... e6 {[%clk 0:02:52.6]} 8. Nf3 {[%clk
0:03:03.6]} 8... Bd6 {[%clk 0:02:46.6]} 9. h5 {[%clk 0:03:05.5]} 9... Bh7 {[%clk
0:02:45.4]} 10. Bd3 {[%clk 0:03:07.4]} 10... Bxd3 {[%clk 0:02:44.6]} 11. Qxd3
{[%clk 0:03:09.3]} 11... Nf6 {[%clk 0:02:46.2]} 12. Bd2 {[%clk 0:03:09.4]} 12...
Qc7 {[%clk 0:02:41.6]} 13. Ne2 {[%clk 0:03:10.3]} 13... Nbd7 {[%clk 0:02:41.9]}
14. O-O-O {[%clk 0:03:11.2]} 14... c5 {[%clk 0:02:42.6]} 15. Kb1 {[%clk
0:03:11.8]} 15... c4 {[%clk 0:02:41.2]} 16. Qe3 {[%clk 0:03:12.8]} 16... Nd5
{[%clk 0:02:41.5]} 17. Qf2 {[%clk 0:03:12.1]} 17... b5 {[%clk 0:02:39.4]} 18. f5
{[%clk 0:03:11.8]} 18... b4 {[%clk 0:02:37.8]} 19. fxe6 {[%clk 0:03:12.6]} 19...
fxe6 {[%clk 0:02:39.1]} 20. Bc1 {[%clk 0:03:14.2]} 20... O-O {[%clk 0:02:37.4]}
21. Qh4 {[%clk 0:03:13]} 21... Rab8 {[%clk 0:02:30.3]} 22. Qe4 {[%clk
0:03:12.8]} 22... N7f6 {[%clk 0:02:30.5]} 23. Qxe6+ {[%clk 0:03:13.2]} 23... Rf7
{[%clk 0:02:30.4]} 24. Ne5 {[%clk 0:03:14.4]} 24... Bxe5 {[%clk 0:02:28.6]} 25.
dxe5 {[%clk 0:03:16.3]} 25... Re8 {[%clk 0:02:27.4]} 26. Qa6 {[%clk 0:03:14.2]}
26... Qxe5 {[%clk 0:02:28.4]} 27. Nd4 {[%clk 0:03:14.6]} 27... Rc7 {[%clk
0:02:25.1]} 28. Nf3 {[%clk 0:03:14.9]} 28... Qf5 {[%clk 0:02:23.8]} 29. Rhe1
{[%clk 0:03:14.7]} 29... Rxe1 {[%clk 0:02:22.7]} 30. Rxe1 {[%clk 0:03:16.6]}
30... Qxh5 {[%clk 0:02:20.2]} 31. Qe6+ {[%clk 0:03:16.9]} 31... Kh7 {[%clk
0:02:21.2]} 32. Qe2 {[%clk 0:03:17.2]} 32... b3 {[%clk 0:02:16.4]} 33. axb3
{[%clk 0:03:17.7]} 33... cxb3 {[%clk 0:02:16.3]} 34. Qd3+ {[%clk 0:03:19.1]}
34... Kg8 {[%clk 0:02:14.8]} 35. Qxb3 {[%clk 0:03:20]} 35... Qf5 {[%clk
0:02:13.7]} 36. Nd4 {[%clk 0:03:20.5]} 36... Qg4 {[%clk 0:02:12.5]} 37. Qb8+
{[%clk 0:03:21]} 37... Kh7 {[%clk 0:02:09.4]} 38. c3 {[%clk 0:03:22.4]} 38...
Qg6+ {[%clk 0:02:05.4]} 39. Ka2 {[%clk 0:03:23.6]} 39... Qg3 {[%clk 0:02:03.6]}
40. Re2 {[%clk 0:03:22.8]} 40... Rxc3 {[%clk 0:01:54.2]} 41. Qxg3 {[%clk
0:03:23.1]} 41... Rxg3 {[%clk 0:01:55.5]} 42. Bd2 {[%clk 0:03:23.6]} 42... g5
{[%clk 0:01:53.4]} 43. Nf5 {[%clk 0:03:24.8]} 43... Rd3 {[%clk 0:01:52.4]} 44.
Kb1 {[%clk 0:03:19.9]} 44... Kg6 {[%clk 0:01:50.1]} 45. Nd6 {[%clk 0:03:14.2]}
45... h5 {[%clk 0:01:47.4]} 46. Kc2 {[%clk 0:03:14.3]} 46... Rd4 {[%clk
0:01:48.7]} 47. Nb5 {[%clk 0:03:15.1]} 47... Rc4+ {[%clk 0:01:48.6]} 48. Kb3
{[%clk 0:03:16.6]} 48... Re4 {[%clk 0:01:43.9]} 49. Rf2 {[%clk 0:03:18]} 49...
h4 {[%clk 0:01:41.9]} 50. Nc3 {[%clk 0:03:19]} 50... Nxc3 {[%clk 0:01:41.3]} 51.
Bxc3 {[%clk 0:03:20.9]} 51... Ng4 {[%clk 0:01:41.6]} 52. Rf8 {[%clk 0:03:21.1]}
52... Ne3 {[%clk 0:01:39.8]} 53. Rg8+ {[%clk 0:03:11]} 53... Kh5 {[%clk
0:01:39.6]} 54. Bf6 {[%clk 0:03:11]} 54... Rg4 {[%clk 0:01:38]} 55. Bd4 {[%clk
0:03:10]} 55... Rxd4 {[%clk 0:01:38.3]} 0-1

[Event "*** Titled Tuesday Blitz"]
[Site "Chess.com"]
[Date "2018.01.02"]
[Round "9"]
[White "TregubovP"]
[Black "oskariot"]
[Result "0-1"]
[WhiteElo "2482"]
[BlackElo "2387"]
[TimeControl "180+2"]
[EndTime "14:58:13 PST"]
[Termination "oskariot won by resignation"]

1. d4 {[%clk 0:03:01.9]} 1... Nf6 {[%clk 0:03:00]} 2. c4 {[%clk 0:03:02.8]} 2...
c5 {[%clk 0:02:57.7]} 3. d5 {[%clk 0:03:02.9]} 3... b5 {[%clk 0:02:58.7]} 4.
cxb5 {[%clk 0:03:03.2]} 4... a6 {[%clk 0:03:00.2]} 5. e3 {[%clk 0:03:01.9]} 5...
g6 {[%clk 0:02:58.1]} 6. Nc3 {[%clk 0:03:00.8]} 6... Bg7 {[%clk 0:02:59.2]} 7.
Nf3 {[%clk 0:03:01.5]} 7... O-O {[%clk 0:03:00.8]} 8. a4 {[%clk 0:03:02.3]} 8...
d6 {[%clk 0:03:02.7]} 9. Be2 {[%clk 0:03:01]} 9... Qa5 {[%clk 0:03:03.8]} 10.
O-O {[%clk 0:03:00.5]} 10... axb5 {[%clk 0:02:56.1]} 11. Bxb5 {[%clk 0:02:59.9]}
11... Ba6 {[%clk 0:02:54.8]} 12. Bd2 {[%clk 0:02:59.3]} 12... Ne8 {[%clk
0:02:51.2]} 13. e4 {[%clk 0:02:58.1]} 13... Nc7 {[%clk 0:02:50.2]} 14. e5 {[%clk
0:02:39.5]} 14... Qb6 {[%clk 0:02:39.2]} 15. exd6 {[%clk 0:02:30.9]} 15... exd6
{[%clk 0:02:37.1]} 16. a5 {[%clk 0:02:30.2]} 16... Qb7 {[%clk 0:02:36.9]} 17.
Bxa6 {[%clk 0:02:29]} 17... Nbxa6 {[%clk 0:02:35.7]} 18. Ne4 {[%clk 0:02:29]}
18... Qxd5 {[%clk 0:02:32.1]} 19. Re1 {[%clk 0:02:25.9]} 19... Bxb2 {[%clk
0:02:25.1]} 20. Bh6 {[%clk 0:02:15.4]} 20... Qxd1 {[%clk 0:02:16.9]} 21. Raxd1
{[%clk 0:02:14.9]} 21... d5 {[%clk 0:02:17.5]} 22. Bxf8 {[%clk 0:01:36.3]} 22...
dxe4 {[%clk 0:02:18.1]} 23. Ng5 {[%clk 0:01:33.6]} 23... Rxf8 {[%clk 0:02:12.8]}
24. Nxe4 {[%clk 0:01:35.1]} 24... Kg7 {[%clk 0:02:02.3]} 25. Rd7 {[%clk
0:01:33]} 25... c4 {[%clk 0:01:45.8]} 26. Nd6 {[%clk 0:01:30.6]} 26... c3 {[%clk
0:01:40.4]} 27. Re2 {[%clk 0:01:31.8]} 27... Ne6 {[%clk 0:01:24.4]} 28. Nc4
{[%clk 0:01:15]} 28... Nac5 {[%clk 0:01:16.4]} 29. Rd5 {[%clk 0:01:14.2]} 29...
Nf4 {[%clk 0:01:14.6]} 0-1

[Event "*** Titled Tuesday Blitz"]
[Site "Chess.com"]
[Date "2018.01.02"]
[Round "9"]
[White "djogrodek1"]
[Black "Abrito99"]
[Result "0-1"]
[WhiteElo "2459"]
[BlackElo "2399"]
[TimeControl "180+2"]
[EndTime "14:58:16 PST"]
[Termination "Abrito99 won by resignation"]

1. e4 {[%clk 0:02:58.2]} 1... c5 {[%clk 0:02:59.7]} 2. Nf3 {[%clk 0:02:59.1]}
2... e6 {[%clk 0:03:00.9]} 3. d4 {[%clk 0:02:59.5]} 3... cxd4 {[%clk 0:03:02.3]}
4. Nxd4 {[%clk 0:03:01.4]} 4... Nc6 {[%clk 0:03:03.9]} 5. Nc3 {[%clk 0:03:02.4]}
5... Qc7 {[%clk 0:03:04]} 6. Be3 {[%clk 0:03:03.4]} 6... a6 {[%clk 0:03:05.1]}
7. a3 {[%clk 0:03:04.7]} 7... Nf6 {[%clk 0:03:01.3]} 8. f4 {[%clk 0:03:05.4]}
8... Nxd4 {[%clk 0:02:53.7]} 9. Qxd4 {[%clk 0:03:05.4]} 9... Ng4 {[%clk
0:02:35.2]} 10. Bg1 {[%clk 0:02:50.9]} 10... Qxf4 {[%clk 0:02:34.1]} 11. Be2
{[%clk 0:02:24]} 11... h5 {[%clk 0:02:06.2]} 12. g3 {[%clk 0:02:17.9]} 12... Qc7
{[%clk 0:02:01.8]} 13. O-O-O {[%clk 0:02:13.8]} 13... Be7 {[%clk 0:01:49.4]} 14.
Na4 {[%clk 0:01:19.8]} 14... b5 {[%clk 0:01:38.6]} 15. Nb6 {[%clk 0:01:16.4]}
15... Rb8 {[%clk 0:01:35.5]} 16. Bxg4 {[%clk 0:00:40.7]} 16... Bf6 {[%clk
0:01:28]} 17. e5 {[%clk 0:00:25.3]} 17... Bxe5 {[%clk 0:01:28.4]} 18. Qb4 {[%clk
0:00:21.3]} 18... hxg4 {[%clk 0:01:27.7]} 19. Nxc8 {[%clk 0:00:22.1]} 19... Rxc8
{[%clk 0:01:27.9]} 20. Rd2 {[%clk 0:00:23.7]} 20... Qc6 {[%clk 0:01:26.6]} 0-1

[Event "*** Titled Tuesday Blitz"]
[Site "Chess.com"]
[Date "2018.01.02"]
[Round "9"]
[White "evgenysharapov"]
[Black "Korchmar_Vasiliy"]
[Result "0-1"]
[WhiteElo "2382"]
[BlackElo "2560"]
[TimeControl "180+2"]
[EndTime "14:58:39 PST"]
[Termination "Korchmar_Vasiliy won by checkmate"]

1. e4 {[%clk 0:03:01.9]} 1... e5 {[%clk 0:03:00.5]} 2. Nf3 {[%clk 0:03:02.2]}
2... Nc6 {[%clk 0:03:01.8]} 3. Bb5 {[%clk 0:03:02.3]} 3... a6 {[%clk 0:03:03.2]}
4. Ba4 {[%clk 0:03:03.1]} 4... Nf6 {[%clk 0:03:04.4]} 5. O-O {[%clk 0:03:01.5]}
5... Be7 {[%clk 0:03:05.7]} 6. Re1 {[%clk 0:03:02.2]} 6... b5 {[%clk 0:03:07]}
7. Bb3 {[%clk 0:03:02.7]} 7... O-O {[%clk 0:03:08.9]} 8. c3 {[%clk 0:03:03.6]}
8... d5 {[%clk 0:03:07.2]} 9. exd5 {[%clk 0:03:03.9]} 9... Nxd5 {[%clk
0:03:09.1]} 10. Nxe5 {[%clk 0:03:03.5]} 10... Nxe5 {[%clk 0:03:11]} 11. Rxe5
{[%clk 0:03:04.2]} 11... c6 {[%clk 0:03:12.9]} 12. d4 {[%clk 0:03:05]} 12... Bd6
{[%clk 0:03:13.9]} 13. Re1 {[%clk 0:03:05]} 13... Qh4 {[%clk 0:03:14.9]} 14. g3
{[%clk 0:03:05.5]} 14... Qh3 {[%clk 0:03:16]} 15. Be3 {[%clk 0:03:05.1]} 15...
Bg4 {[%clk 0:03:16.5]} 16. Qd3 {[%clk 0:03:05.5]} 16... Rae8 {[%clk 0:03:16.7]}
17. Nd2 {[%clk 0:03:05.5]} 17... Qh5 {[%clk 0:03:17.3]} 18. a4 {[%clk
0:02:59.1]} 18... Re6 {[%clk 0:03:17.8]} 19. Bxd5 {[%clk 0:02:38.7]} 19... Qxd5
{[%clk 0:03:09.7]} 20. axb5 {[%clk 0:02:33.6]} 20... axb5 {[%clk 0:03:11.6]} 21.
c4 {[%clk 0:02:20.3]} 21... bxc4 {[%clk 0:03:08.6]} 22. Qxc4 {[%clk 0:02:20.7]}
22... Qh5 {[%clk 0:03:04.8]} 23. f4 {[%clk 0:02:06.8]} 23... Rb8 {[%clk
0:02:45.1]} 24. Bf2 {[%clk 0:01:46.5]} 24... Be2 {[%clk 0:02:38.4]} 25. Qc2
{[%clk 0:01:27.6]} 25... Bb4 {[%clk 0:02:15.5]} 26. Ra4 {[%clk 0:01:17.1]} 26...
Qd5 {[%clk 0:02:04.9]} 27. Rea1 {[%clk 0:01:15.3]} 27... Ree8 {[%clk 0:01:52.9]}
28. Nb1 {[%clk 0:01:02.9]} 28... Bf1 {[%clk 0:01:44.1]} 29. Kxf1 {[%clk
0:00:48.3]} 29... Qh1+ {[%clk 0:01:44.3]} 30. Bg1 {[%clk 0:00:49.4]} 30... Qf3+
{[%clk 0:01:35.4]} 31. Bf2 {[%clk 0:00:46.9]} 31... Re1# {[%clk 0:01:35.9]} 0-1

[Event "*** Titled Tuesday Blitz"]
[Site "Chess.com"]
[Date "2018.01.02"]
[Round "9"]
[White "chessdjw"]
[Black "Tonychess32"]
[Result "1-0"]
[WhiteElo "2521"]
[BlackElo "2429"]
[TimeControl "180+2"]
[EndTime "14:58:48 PST"]
[Termination "chessdjw won on time"]

1. Nf3 {[%clk 0:03:01.9]} 1... Nf6 {[%clk 0:03:00]} 2. g3 {[%clk 0:03:03.2]}
2... g6 {[%clk 0:03:01.1]} 3. Bg2 {[%clk 0:03:05.1]} 3... Bg7 {[%clk 0:03:02.1]}
4. O-O {[%clk 0:03:06.3]} 4... O-O {[%clk 0:03:03.5]} 5. d4 {[%clk 0:03:07.7]}
5... c6 {[%clk 0:03:01.1]} 6. c4 {[%clk 0:03:07.9]} 6... d5 {[%clk 0:02:59.3]}
7. Nbd2 {[%clk 0:03:08.4]} 7... h5 {[%clk 0:02:47.2]} 8. b3 {[%clk 0:03:04.1]}
8... dxc4 {[%clk 0:02:45.1]} 9. Nxc4 {[%clk 0:03:03.9]} 9... Nbd7 {[%clk
0:02:42.6]} 10. Qc2 {[%clk 0:02:42.9]} 10... Nb6 {[%clk 0:02:42.7]} 11. e4
{[%clk 0:02:43.7]} 11... Bg4 {[%clk 0:02:42.1]} 12. Nfe5 {[%clk 0:02:41.8]}
12... Be6 {[%clk 0:02:40.2]} 13. Bb2 {[%clk 0:02:41.1]} 13... Qc8 {[%clk
0:02:33.6]} 14. f4 {[%clk 0:02:38.9]} 14... Bxc4 {[%clk 0:01:59.5]} 15. bxc4
{[%clk 0:02:40.8]} 15... Nbd7 {[%clk 0:01:50.2]} 16. f5 {[%clk 0:02:38.3]} 16...
Nxe5 {[%clk 0:01:33.8]} 17. dxe5 {[%clk 0:02:40.2]} 17... Ng4 {[%clk 0:01:24.6]}
18. e6 {[%clk 0:02:25.4]} 18... Ne3 {[%clk 0:01:15.9]} 19. Qe2 {[%clk
0:02:25.7]} 19... Nxf1 {[%clk 0:01:11.1]} 20. Rxf1 {[%clk 0:02:10.3]} 20... Bxb2
{[%clk 0:01:11.4]} 21. Qxb2 {[%clk 0:02:12.2]} 21... fxe6 {[%clk 0:00:55]} 22.
fxg6 {[%clk 0:02:11.6]} 22... Rxf1+ {[%clk 0:00:55.3]} 23. Bxf1 {[%clk
0:02:13.5]} 23... Qc7 {[%clk 0:00:48.1]} 24. c5 {[%clk 0:02:03.6]} 24... Rd8
{[%clk 0:00:45.9]} 25. Bc4 {[%clk 0:02:04]} 25... Rd1+ {[%clk 0:00:45.4]} 26.
Kg2 {[%clk 0:02:03.5]} 26... Qd7 {[%clk 0:00:46.9]} 27. Qe5 {[%clk 0:01:59.3]}
27... Qd2+ {[%clk 0:00:32.5]} 28. Kh3 {[%clk 0:01:59.6]} 28... Qh6 {[%clk
0:00:04.2]} 29. Bxe6+ {[%clk 0:01:59.5]} 29... Kf8 {[%clk 0:00:05.7]} 30. g7+
{[%clk 0:02:00.5]} 30... Qxg7 {[%clk 0:00:06.7]} 31. Qb8+ {[%clk 0:02:02.1]} 1-0

[Event "*** Titled Tuesday Blitz"]
[Site "Chess.com"]
[Date "2018.01.02"]
[Round "9"]
[White "pandamaster3000"]
[Black "chesstatour"]
[Result "1-0"]
[WhiteElo "2261"]
[BlackElo "2034"]
[TimeControl "180+2"]
[EndTime "14:59:30 PST"]
[Termination "pandamaster3000 won on time"]

1. e4 {[%clk 0:03:01.9]} 1... c6 {[%clk 0:03:01.1]} 2. d4 {[%clk 0:03:02.5]}
2... d5 {[%clk 0:03:03]} 3. exd5 {[%clk 0:03:03.9]} 3... cxd5 {[%clk 0:02:59.9]}
4. Bd3 {[%clk 0:03:04.7]} 4... Nc6 {[%clk 0:03:00.2]} 5. c3 {[%clk 0:03:05.3]}
5... g6 {[%clk 0:03:00.6]} 6. Bf4 {[%clk 0:03:04.8]} 6... Bg7 {[%clk 0:03:01.9]}
7. Nf3 {[%clk 0:03:05.6]} 7... Nh6 {[%clk 0:03:02.6]} 8. Qc1 {[%clk 0:02:57]}
8... Nf5 {[%clk 0:03:02.5]} 9. O-O {[%clk 0:02:57.4]} 9... O-O {[%clk 0:03:01]}
10. Re1 {[%clk 0:02:58.4]} 10... f6 {[%clk 0:02:50.7]} 11. Nbd2 {[%clk
0:02:55.1]} 11... Bd7 {[%clk 0:02:27.7]} 12. a4 {[%clk 0:02:38.6]} 12... Rc8
{[%clk 0:02:21.3]} 13. Nb3 {[%clk 0:02:14.5]} 13... g5 {[%clk 0:00:45.7]} 14.
Bg3 {[%clk 0:01:56.7]} 14... g4 {[%clk 0:00:43.9]} 15. Bxf5 {[%clk 0:01:57.6]}
15... Bxf5 {[%clk 0:00:43.8]} 16. Nh4 {[%clk 0:01:44.8]} 16... Be4 {[%clk
0:00:35.9]} 17. Nc5 {[%clk 0:01:41.6]} 17... f5 {[%clk 0:00:18]} 18. Ne6 {[%clk
0:01:34.8]} 18... Qd7 {[%clk 0:00:16.3]} 19. Nxf8 {[%clk 0:01:32.5]} 19... Rxf8
{[%clk 0:00:18.2]} 20. Qg5 {[%clk 0:01:24.4]} 20... Kh8 {[%clk 0:00:14.1]} 21.
f3 {[%clk 0:01:19.3]} 21... gxf3 {[%clk 0:00:14.5]} 22. gxf3 {[%clk 0:01:21.2]}
22... Bd3 {[%clk 0:00:13.1]} 23. Qh5 {[%clk 0:01:16]} 23... e5 {[%clk
0:00:11.1]} 24. Ng6+ {[%clk 0:01:14]} 24... Kg8 {[%clk 0:00:11.2]} 25. Nxe5
{[%clk 0:01:14.5]} 25... Nxe5 {[%clk 0:00:09.6]} 26. Bxe5 {[%clk 0:01:15.5]}
26... f4 {[%clk 0:00:08]} 27. Bxg7 {[%clk 0:01:10.6]} 27... Qxg7+ {[%clk
0:00:09.9]} 28. Kf2 {[%clk 0:01:11.5]} 28... Kh8 {[%clk 0:00:09.3]} 29. Rg1
{[%clk 0:01:12]} 29... Qc7 {[%clk 0:00:07]} 30. Rae1 {[%clk 0:01:04.9]} 30... b6
{[%clk 0:00:03.8]} 31. Re8 {[%clk 0:01:03.2]} 1-0

[Event "*** Titled Tuesday Blitz"]
[Site "Chess.com"]
[Date "2018.01.02"]
[Round "9"]
[White "eldur16"]
[Black "geeeeri"]
[Result "1-0"]
[WhiteElo "2513"]
[BlackElo "2412"]
[TimeControl "180+2"]
[EndTime "14:59:32 PST"]
[Termination "eldur16 won by resignation"]

1. c4 {[%clk 0:03:01.9]} 1... e5 {[%clk 0:03:00.2]} 2. g3 {[%clk 0:03:01.4]}
2... Nc6 {[%clk 0:03:02.1]} 3. Bg2 {[%clk 0:03:01.9]} 3... Nf6 {[%clk 0:03:04]}
4. Nc3 {[%clk 0:03:01.7]} 4... Bc5 {[%clk 0:03:05.5]} 5. e3 {[%clk 0:03:02]}
5... O-O {[%clk 0:03:06.9]} 6. Nge2 {[%clk 0:03:02.7]} 6... Re8 {[%clk
0:03:07.4]} 7. O-O {[%clk 0:03:01.7]} 7... a5 {[%clk 0:03:08.3]} 8. d4 {[%clk
0:02:56.3]} 8... Bf8 {[%clk 0:03:09.1]} 9. d5 {[%clk 0:02:56]} 9... Ne7 {[%clk
0:03:08.7]} 10. e4 {[%clk 0:02:56.9]} 10... d6 {[%clk 0:03:09.3]} 11. h3 {[%clk
0:02:57.8]} 11... c6 {[%clk 0:02:49]} 12. Be3 {[%clk 0:02:57.7]} 12... b5 {[%clk
0:02:47.2]} 13. cxb5 {[%clk 0:02:50.5]} 13... cxd5 {[%clk 0:02:36.7]} 14. exd5
{[%clk 0:02:51.2]} 14... Bb7 {[%clk 0:02:36.5]} 15. Qd2 {[%clk 0:02:48.7]} 15...
Nf5 {[%clk 0:02:31.9]} 16. Rac1 {[%clk 0:02:38.2]} 16... g6 {[%clk 0:02:24.5]}
17. Rfd1 {[%clk 0:02:37.1]} 17... Bg7 {[%clk 0:02:24.8]} 18. Na4 {[%clk
0:02:32.4]} 18... Nxe3 {[%clk 0:02:22.2]} 19. Qxe3 {[%clk 0:02:31.6]} 19... Nd7
{[%clk 0:02:22.4]} 20. Rc6 {[%clk 0:02:29.6]} 20... Bf8 {[%clk 0:01:23.5]} 21.
b6 {[%clk 0:02:26]} 21... Nc5 {[%clk 0:01:08.2]} 22. Nxc5 {[%clk 0:02:19.2]}
22... dxc5 {[%clk 0:01:10.1]} 23. Rc7 {[%clk 0:02:16.7]} 23... Ba6 {[%clk
0:01:01.1]} 24. Nc3 {[%clk 0:02:16.1]} 24... Rb8 {[%clk 0:01:01.2]} 25. d6
{[%clk 0:01:57.2]} 25... Bc4 {[%clk 0:00:51.6]} 26. Qxc5 {[%clk 0:01:55.3]}
26... Be6 {[%clk 0:00:50.8]} 27. Nd5 {[%clk 0:01:47.1]} 27... Bxd6 {[%clk
0:00:44.1]} 28. Qxd6 {[%clk 0:01:45.9]} 28... Bxd5 {[%clk 0:00:36]} 29. Bxd5
{[%clk 0:01:22.5]} 29... Qxd6 {[%clk 0:00:30.5]} 30. Bxf7+ {[%clk 0:01:22.9]}
30... Kf8 {[%clk 0:00:31.4]} 31. Rxd6 {[%clk 0:01:23.4]} 31... Re7 {[%clk
0:00:32.5]} 32. Bd5 {[%clk 0:00:58.4]} 32... Rxb6 {[%clk 0:00:27.4]} 33. Rc8+
{[%clk 0:00:59.2]} 1-0

[Event "*** Titled Tuesday Blitz"]
[Site "Chess.com"]
[Date "2018.01.02"]
[Round "9"]
[White "sergeikim"]
[Black "Keaton87"]
[Result "0-1"]
[WhiteElo "2352"]
[BlackElo "2518"]
[TimeControl "180+2"]
[EndTime "14:59:35 PST"]
[Termination "Keaton87 won by resignation"]

1. d4 {[%clk 0:03:01.9]} 1... d5 {[%clk 0:03:00.2]} 2. c4 {[%clk 0:03:02.5]}
2... e6 {[%clk 0:03:01.1]} 3. Nc3 {[%clk 0:03:03.3]} 3... Be7 {[%clk 0:03:01.6]}
4. Nf3 {[%clk 0:03:03.8]} 4... Nf6 {[%clk 0:03:02.7]} 5. Bf4 {[%clk 0:03:04.5]}
5... O-O {[%clk 0:03:03.2]} 6. e3 {[%clk 0:03:04.3]} 6... b6 {[%clk 0:03:02]} 7.
cxd5 {[%clk 0:03:04.3]} 7... Nxd5 {[%clk 0:03:02.1]} 8. Nxd5 {[%clk 0:03:01.9]}
8... exd5 {[%clk 0:03:02.7]} 9. Bd3 {[%clk 0:03:02.1]} 9... c5 {[%clk 0:03:03]}
10. O-O {[%clk 0:02:58.4]} 10... Nc6 {[%clk 0:03:03.9]} 11. h3 {[%clk
0:02:49.4]} 11... c4 {[%clk 0:03:05]} 12. Bc2 {[%clk 0:02:49.6]} 12... Be6
{[%clk 0:03:04.1]} 13. Ne5 {[%clk 0:02:46.7]} 13... Nxe5 {[%clk 0:03:04.1]} 14.
Bxe5 {[%clk 0:02:35.5]} 14... b5 {[%clk 0:03:04.8]} 15. Qh5 {[%clk 0:02:20.2]}
15... f5 {[%clk 0:03:05.1]} 16. f3 {[%clk 0:02:06.9]} 16... Qe8 {[%clk
0:03:02.2]} 17. Qxe8 {[%clk 0:02:04]} 17... Rfxe8 {[%clk 0:03:01.7]} 18. g4
{[%clk 0:02:02.2]} 18... g6 {[%clk 0:02:59.1]} 19. Kh2 {[%clk 0:01:55.8]} 19...
Kf7 {[%clk 0:02:59.2]} 20. Rg1 {[%clk 0:01:56.2]} 20... Bf6 {[%clk 0:02:56.9]}
21. Bd6 {[%clk 0:01:50.8]} 21... a5 {[%clk 0:02:50.2]} 22. Rg2 {[%clk
0:01:36.5]} 22... Rac8 {[%clk 0:02:47.4]} 23. Rag1 {[%clk 0:01:34.8]} 23... Red8
{[%clk 0:02:48.3]} 24. gxf5 {[%clk 0:01:27.9]} 24... Rxd6 {[%clk 0:02:26.8]} 25.
fxg6+ {[%clk 0:01:08.4]} 25... hxg6 {[%clk 0:02:23.5]} 26. Rxg6 {[%clk
0:01:08.7]} 26... Rh8 {[%clk 0:02:20.4]} 27. R1g3 {[%clk 0:00:57.2]} 27... b4
{[%clk 0:02:19.4]} 28. f4 {[%clk 0:00:55.2]} 28... Ke7 {[%clk 0:02:18]} 29. f5
{[%clk 0:00:53.4]} 29... Bf7 {[%clk 0:02:18.7]} 30. R6g4 {[%clk 0:00:53.3]}
30... Bh5 {[%clk 0:02:10.6]} 31. Rf4 {[%clk 0:00:53.8]} 31... Be2 {[%clk
0:02:11.2]} 32. Rg6 {[%clk 0:00:48.8]} 32... Bd3 {[%clk 0:02:10.2]} 33. Bd1
{[%clk 0:00:46.3]} 33... c3 {[%clk 0:02:08.4]} 34. bxc3 {[%clk 0:00:46.4]} 34...
bxc3 {[%clk 0:02:10.3]} 35. Rf2 {[%clk 0:00:44.8]} 35... Rb6 {[%clk 0:02:11.1]}
36. Rgg2 {[%clk 0:00:43.8]} 36... Rhb8 {[%clk 0:02:10.5]} 37. Bc2 {[%clk
0:00:44.1]} 37... Bxc2 {[%clk 0:02:05.8]} 38. Rxc2 {[%clk 0:00:44.9]} 38... Rc6
{[%clk 0:02:04.2]} 39. Kg3 {[%clk 0:00:44.7]} 39... Rg8+ {[%clk 0:02:04.2]} 40.
Kf3 {[%clk 0:00:45.6]} 40... Rxg2 {[%clk 0:02:03.4]} 41. Kxg2 {[%clk 0:00:46.4]}
41... Bh4 {[%clk 0:02:03.3]} 42. Kf1 {[%clk 0:00:40.4]} 42... Kf6 {[%clk
0:02:01.7]} 43. Ke2 {[%clk 0:00:41]} 43... Kxf5 {[%clk 0:02:02.6]} 44. Kd3
{[%clk 0:00:41.3]} 44... Rc8 {[%clk 0:01:59.6]} 45. Rxc3 {[%clk 0:00:31.7]}
45... Rxc3+ {[%clk 0:01:59.7]} 46. Kxc3 {[%clk 0:00:32.9]} 46... Ke4 {[%clk
0:02:00.2]} 47. Kb3 {[%clk 0:00:32.4]} 47... Kxe3 {[%clk 0:01:58.9]} 48. Ka4
{[%clk 0:00:33]} 48... Kxd4 {[%clk 0:01:59.9]} 49. Kxa5 {[%clk 0:00:33.3]} 49...
Kc4 {[%clk 0:02:01.1]} 0-1